fUSD/lending_fUSD_20250904
["ID","MTS","AMOUNT","RATE_DAILY","PERIOD"]
[383481188,1756957508966,157.31903478,0.00018,2]
[383481189,1756957511264,157.10394408,0.00018,2]
[383481190,1756957513541,-24.3036435,0.000184,2]
[383481191,1756957513644,-125.6963565,0.000184,2]
[383481192,1756957513668,-74.3036435,0.00018783,2]
[383481193,1756957513760,-150.0,0.00018783,2]
[383481194,1756957514905,-114.66877031,0.00018783,2]
[383481195,1756957514930,-150.0,0.000188,2]
[383481196,1756957529799,191.98607297,0.00018,2]
[383481197,1756957529890,157.80079027,0.00018,2]
[383481198,1756957529950,154.65798952,0.00018,2]
[383481199,1756957541380,-162.92801549,0.00019032,2]
[383481200,1756957571539,-17.32174141,0.00019032,2]
[383481201,1756957571565,-17.32174141,0.00019186,2]
[383481202,1756957571589,-159.79755418,0.00019186,2]
[383481203,1756957579183,-400.0,0.00018753,2]
[383481204,1756957586552,-384.09923993,0.00018753,2]
[383481205,1756957593624,-400.0,0.00018752,2]
[383481206,1756957600717,-30.80692137,0.00018752,2]
[383481207,1756957600741,-30.80692137,0.00018752,2]
[383481208,1756957600760,-338.38615726,0.00018752,2]
[383481209,1756957607718,-55.92862469,0.00018752,2]
[383481210,1756957607742,-55.92862469,0.00018752,2]
[383481211,1756957607753,-332.56875062,0.00018752,2]
[383481212,1756957614783,-111.50262469,0.00018752,2]
[383481213,1756957614808,-111.50262469,0.00018752,2]
[383481214,1756957614827,-276.99475062,0.00018752,2]
[383481215,1756957621828,-30.31418486,0.00018752,2]
[383481216,1756957621862,-30.31418486,0.00018752,2]
[383481217,1756957621873,-348.98327248,0.00018752,2]
[383481218,1756957622233,160.0,0.00018812,7]
[383481219,1756957629204,5600.0,0.000195,7]
[383481220,1756957629471,-2.23949304,0.00018751,2]
[383481221,1756957629489,-480.76050696,0.00018751,2]
[383481222,1756957629498,-2.23949304,0.00018752,2]
[383481223,1756957636467,-118.46304962,0.00018752,2]
[383481224,1756957636498,-118.46304962,0.00018752,2]
[383481225,1756957636559,-263.07390076,0.00018752,2]
[383481226,1756957643949,-118.46304962,0.00018752,2]
[383481227,1756957643982,-118.46304962,0.00018752,2]
[383481228,1756957644002,-183.67341398,0.00018752,2]
[383481229,1756957644012,-20.9215007,0.00018752,2]
[383481230,1756957644966,-181.60187249,0.00018752,2]
[383481231,1756957648566,-213.254,0.00018752,2]
[383481232,1756957650217,-84.22262681,0.00018752,2]
[383481233,1756957650243,-233.50838508,0.00018752,2]
[383481234,1756957651935,-101.78990596,0.00018752,2]
[383481235,1756957652039,-164.70170896,0.00018752,2]
[383481236,1756957652048,-101.78990596,0.00018752,2]
[383481237,1756957653693,-398.21009404,0.00018752,2]
[383481238,1756957653719,-141.98175056,0.00018752,2]
[383481239,1756957657027,-161.47120272,0.00018752,2]
[383481240,1756957657051,-119.39879728,0.00018752,2]
[383481241,1756957658813,-119.39879728,0.00018752,2]
[383481242,1756957658827,-261.20240544,0.00018752,2]
[383481243,1756957658836,-119.39879728,0.00018752,2]
[383481244,1756957659245,-173.3407199,0.00018752,2]
[383481245,1756957665445,-396.5131671,0.00018724,2]
[383481246,1756957665846,-500.0,0.00018724,2]
[383481247,1756957666992,-202.19861576,0.00018724,2]
[383481248,1756957669785,-242.37821714,0.00018724,2]
[383481249,1756957669809,-146.68548614,0.00018752,2]
[383481250,1756957671748,-5.00099668,0.00018752,2]
[383481251,1756957671777,-194.99900332,0.00018752,2]
[383481252,1756957673504,-214.61263888,0.00018752,2]
[383481253,1756957673524,-214.61263888,0.00018752,2]
[383481254,1756957673551,-70.77472224,0.00018752,2]
[383481255,1756957673584,-214.61263888,0.00018752,2]
[383481256,1756957673608,-0.8224171,0.00018752,2]
[383481257,1756957677751,-191.2290128,0.00018752,2]
[383481258,1756957680323,-200.37095561,0.00018752,2]
[383481259,1756957680503,-92.81710753,0.00018752,2]
[383481260,1756957680522,-92.81710753,0.00018752,2]
[383481261,1756957680540,-14.36578494,0.00018752,2]
[383481262,1756957682969,-151.0,0.00018752,2]
[383481263,1756957684524,-165.18080583,0.00018752,2]
[383481264,1756957687893,-76.6363017,0.00018752,2]
[383481265,1756957687921,-500.0,0.00018752,2]
[383481266,1756957687946,-183.1336983,0.00018752,2]
[383481267,1756957688457,-386.47238841,0.00018747,2]
[383481268,1756957690750,-90.99287149,0.00018747,2]
[383481269,1756957690789,-78.93819822,0.00018752,2]
[383481270,1756957694241,-47.73063828,0.00018752,2]
[383481271,1756957694265,-242.84936172,0.00018753,2]
[383481272,1756957695511,-7.15063828,0.00018753,2]
[383481273,1756957695538,-7.15063828,0.00018753,2]
[383481274,1756957695550,-285.69872344,0.00018753,2]
[383481275,1756957695920,-203.25048679,0.00018753,2]
[383481276,1756957698819,-413.41732006,0.00018753,2]
[383481277,1756957701010,-181.362,0.00018753,2]
[383481278,1756957702974,-300.0,0.00018753,2]
[383481279,1756957703322,-173.28339991,0.00018753,2]
[383481280,1756957705099,-187.71707478,0.00018753,2]
[383481281,1756957707489,-71.15111681,0.00018753,2]
[383481282,1756957707512,-223.9107387,0.000188,2]
[383481283,1756957710467,-79.86739016,0.000188,2]
[383481284,1756957710492,-136.02644187,0.00018812,2]
[383481285,1756957710659,-87.71644187,0.00018812,2]
[383481286,1756957710672,-24.56711626,0.00018812,2]
[383481287,1756957712760,-213.29928003,0.00018659,2]
[383481288,1756957714985,-356.55460697,0.00018659,2]
[383481289,1756957715017,-250.0,0.00018958,2]
[383481290,1756957718138,-17.88070441,0.00019186,2]
[383481291,1756957718170,-17.88070441,0.00019285,2]
[383481292,1756957718190,-127.16660667,0.00019285,2]
[383481293,1756957725508,-39.82268892,0.00019285,2]
[383481294,1756957725565,-39.82268892,0.00019316,2]
[383481295,1756957725576,-83.71194059,0.00019316,2]
[383481296,1756957740607,-246.6180971,0.00018747,2]
[383481297,1756957747566,-200.0,0.00018754,2]
[383481298,1756957790752,-43.12537049,0.00019316,2]
[383481299,1756957790781,-18.57995688,0.00019339,2]
[383481300,1756957790802,-43.12537049,0.00019499,2]
[383481301,1756957790815,-18.57995688,0.00019499,2]
[383481302,1756957790834,-162.58934526,0.00019499,2]
[383481303,1756957797752,-250.0,0.00019499,2]
[383481307,1756957820869,-158.54978928,0.00018726,2]
[383481308,1756957823207,-156.29887782,0.00018726,2]
[383481309,1756957824796,-144.7813329,0.00018726,2]
[383481310,1756957824819,-174.53181411,0.00018777,2]
[383481311,1756957826527,-111.46818609,0.00018777,2]
[383481325,1756957832388,-346.40452311,0.00019402,2]
[383481326,1756957832399,-5905.40055881,0.00019499,2]
[383481327,1756957832410,-250.0,0.000195,2]
[383481328,1756957832420,-151.0,0.000195,2]
[383481329,1756957832429,-200.0,0.000195,2]
[383481330,1756957832439,-1200.0,0.00019509,2]
[383481331,1756957832448,-300.0,0.00019509,2]
[383481332,1756957832457,-300.0,0.00019509,2]
[383481333,1756957832466,-300.0,0.00019509,2]
[383481334,1756957832476,-4604.90358153,0.0001951,2]
[383481335,1756957832498,-1774.77641847,0.0001951,2]
[383481336,1756957832507,-511.49477259,0.00019576,2]
[383481337,1756957832517,-162.92801549,0.00019576,2]
[383481338,1756957832527,-588.82,0.00019576,2]
[383481339,1756957832536,-277.77666134,0.00019576,2]
[383481340,1756957832546,-320.64,0.00019577,2]
[383481341,1756957832557,-300.0,0.00019591,2]
[383481342,1756957832566,-222.16422603,0.000196,2]
[383481343,1756957832576,-150.0,0.000196,4]
[383481344,1756957832585,-11300.0,0.000196,7]
[383481345,1756957832594,-160.0,0.000196,7]
[383481346,1756957832603,-748.55466328,0.00019634,2]
[383481347,1756957832611,-6379.68,0.00019657,2]
[383481348,1756957832620,-200.0,0.00019695,2]
[383481349,1756957832629,-850.0,0.00019698,2]
[383481350,1756957832638,-845.08163095,0.000197,2]
[383481351,1756957832648,-212.59699798,0.000197,7]
[383481352,1756957832658,-514.64478986,0.000197,7]
[383481353,1756957832667,-17000.0,0.000197,7]
[383481354,1756957832676,-19139.04,0.000197,2]
[383481355,1756957832686,-407.48709492,0.000197,2]
[383481356,1756957832695,-512.95776592,0.000197,2]
[383481357,1756957832705,-27177.97677331,0.000197,2]
[383481360,1756957832715,-253.65363327,0.0001971,2]
[383481361,1756957832724,-881.37835345,0.0001971,2]
[383481363,1756957832734,-6379.68,0.0001973,2]
[383481364,1756957832743,-748.55466328,0.00019741,2]
[383481365,1756957832752,-154.0,0.00019749,2]
[383481366,1756957832761,-512.95776592,0.0001975,2]
[383481367,1756957832770,-502.45019245,0.00019773,2]
[383481368,1756957832779,-500.0,0.00019773,2]
[383481369,1756957832788,-151.85,0.00019789,2]
[383481370,1756957832798,-457.70590453,0.00019789,2]
[383481371,1756957832807,-892.59826841,0.0001979,2]
[383481372,1756957832817,-151.0,0.00019796,2]
[383481373,1756957832828,-200.0,0.00019798,2]
[383481374,1756957832838,-201.60268081,0.00019798,2]
[383481375,1756957832847,-201.91057078,0.00019798,2]
[383481376,1756957832858,-202.46647444,0.00019798,2]
[383481377,1756957832868,-500.0,0.00019798,2]
[383481378,1756957832877,-151.0,0.00019798,2]
[383481379,1756957832887,-151.0,0.00019798,2]
[383481380,1756957832896,-151.0,0.00019798,2]
[383481381,1756957832908,-151.0,0.00019798,2]
[383481382,1756957832918,-151.0,0.00019798,2]
[383481383,1756957832927,-175.57869948,0.00019798,2]
[383481384,1756957832936,-600.0,0.00019798,2]
[383481385,1756957832946,-151.0,0.00019798,2]
[383481386,1756957832955,-600.0,0.00019798,2]
[383481387,1756957832964,-151.0,0.00019798,2]
[383481388,1756957832974,-600.0,0.00019798,2]
[383481389,1756957832983,-151.0,0.00019798,2]
[383481390,1756957832993,-600.0,0.00019798,2]
[383481391,1756957833003,-151.0,0.00019798,2]
[383481392,1756957833013,-600.0,0.00019798,2]
[383481393,1756957833023,-151.0,0.00019798,2]
[383481394,1756957833033,-600.0,0.00019798,2]
[383481395,1756957833044,-265.841198,0.00019798,2]
[383481396,1756957833054,-600.0,0.00019798,2]
[383481397,1756957833065,-600.0,0.00019798,2]
[383481398,1756957833075,-600.0,0.00019798,2]
[383481399,1756957833086,-600.0,0.00019798,2]
[383481400,1756957833096,-151.0,0.00019798,2]
[383481401,1756957833106,-600.0,0.00019798,2]
[383481402,1756957833116,-151.0,0.00019798,2]
[383481403,1756957833127,-523.28778142,0.00019798,2]
[383481404,1756957833137,-151.0,0.00019798,2]
[383481405,1756957833147,-151.0,0.00019798,2]
[383481406,1756957833157,-151.0,0.00019798,2]
[383481407,1756957833168,-151.0,0.00019798,2]
[383481408,1756957833178,-151.0,0.00019798,2]
[383481409,1756957833188,-151.0,0.00019798,2]
[383481410,1756957833198,-151.0,0.00019798,2]
[383481411,1756957833208,-151.0,0.00019798,2]
[383481412,1756957833218,-151.0,0.00019798,2]
[383481413,1756957833228,-151.0,0.00019798,2]
[383481414,1756957833238,-151.0,0.00019798,2]
[383481415,1756957833248,-151.0,0.00019798,2]
[383481416,1756957833258,-151.0,0.00019798,2]
[383481417,1756957833268,-151.0,0.00019798,2]
[383481418,1756957833279,-151.0,0.00019798,2]
[383481419,1756957833288,-151.0,0.00019798,2]
[383481420,1756957833298,-500.0,0.00019798,2]
[383481421,1756957833307,-151.0,0.00019798,2]
[383481422,1756957833318,-155.18169395,0.00019798,2]
[383481423,1756957833328,-500.0,0.00019798,2]
[383481424,1756957833338,-500.0,0.00019798,2]
[383481425,1756957833349,-500.0,0.00019798,2]
[383481426,1756957833358,-500.0,0.00019798,2]
[383481427,1756957833368,-500.0,0.00019798,2]
[383481428,1756957833377,-500.0,0.00019798,2]
[383481429,1756957833387,-500.0,0.00019798,2]
[383481430,1756957833400,-500.0,0.00019798,2]
[383481431,1756957833412,-500.0,0.00019798,2]
[383481432,1756957833422,-500.0,0.00019798,2]
[383481433,1756957833433,-522.63265061,0.00019798,2]
[383481434,1756957833442,-26435.15826911,0.00019799,4]
[383481435,1756957833452,-22600.0,0.000198,7]
[383481436,1756957833462,-192.99529286,0.00019803,5]
[383481437,1756957833473,-163.35838718,0.00019809,2]
[383481438,1756957833483,-29768.45674466,0.0001981,2]
[383481439,1756957833493,-154.06,0.00019825,2]
[383481440,1756957833502,-1235.53,0.00019849,2]
[383481441,1756957833512,-500.0,0.00019853,2]
[383481442,1756957833521,-24788.20689318,0.00019857,2]
[383481443,1756957833530,-500.0,0.00019873,2]
[383481444,1756957833541,-501.50784787,0.00019873,2]
[383481445,1756957833550,-300.0,0.00019899,2]
[383481446,1756957833560,-420.49912939,0.00019899,2]
[383481447,1756957833570,-753.8236766,0.000199,2]
[383481448,1756957833579,-28300.0,0.000199,7]
[383481449,1756957833589,-2316.88623095,0.000199,2]
[383481450,1756957833599,-500.0,0.00019908,2]
[383481451,1756957833609,-955.16464,0.0001993,2]
[383481452,1756957833619,-27177.97677327,0.00019935,2]
[383481453,1756957833629,-152.2790154,0.00019939,2]
[383481454,1756957833638,-955.16465,0.0001994,2]
[383481455,1756957833647,-253.3899792,0.00019946,2]
[383481456,1756957833657,-151.85,0.00019947,2]
[383481457,1756957833666,-151.85,0.00019947,2]
[383481458,1756957833674,-151.85,0.00019947,2]
[383481459,1756957833683,-166.66,0.00019954,2]
[383481460,1756957833693,-151.0,0.00019954,2]
[383481461,1756957833702,-151.0,0.00019954,2]
[383481462,1756957833712,-38747.25347136,0.00019957,2]
[383481463,1756957833724,-499.83407914,0.00019957,2]
[383481464,1756957833793,-500.0,0.00019599,2]
[383481465,1756957833802,-187.05776997,0.00019599,2]
[383481466,1756957833812,-414.69223003,0.00019599,2]
[383481467,1756957833876,-56.73718236,0.00019599,2]
[383481468,1756957833886,-500.0,0.00019599,2]
[383481469,1756957833896,-181.43083067,0.00019599,2]
[383481470,1756957833906,-170.99046622,0.00019954,2]
[383481471,1756957833916,-18450.84152075,0.00019957,2]
[383481472,1756957833928,-26048.46842162,0.00019957,2]
[383481473,1756957833947,-446.07911514,0.00019957,2]
[383481474,1756957838418,-748.55466329,0.00019481,2]
[383481475,1756957838428,-547.9413902,0.00019498,2]
[383481476,1756957838437,-500.0,0.00019599,2]
[383481477,1756957838446,-500.0,0.00019599,2]
[383481478,1756957838456,-500.0,0.00019599,2]
[383481479,1756957838465,-244.18960244,0.00019599,2]
[383481481,1756957838474,-1096667.66633658,0.00019798,4]
[383481483,1756957838484,-512.95776592,0.000198,2]
[383481485,1756957838493,-156.98945273,0.00019873,2]
[383481487,1756957838502,-748.5546633,0.00019931,2]
[383481489,1756957838511,-621253.66675359,0.00019957,2]
[383481491,1756957838520,-500.0,0.00019963,2]
[383481492,1756957838530,-955.16465,0.0001997,2]
[383481494,1756957838539,-155.395,0.00019971,2]
[383481496,1756957838548,-798.97183463,0.00019971,5]
[383481498,1756957838558,-6022.14935386,0.00019971,2]
[383481500,1756957838567,-25909.0,0.00019973,2]
[383481502,1756957838576,-500.0,0.00019973,2]
[383481504,1756957838585,-502.88253084,0.00019973,2]
[383481506,1756957838595,-172.96268542,0.00019973,2]
[383481508,1756957838604,-507.51153044,0.00019973,2]
[383481510,1756957838613,-450.20295843,0.00019973,2]
[383481512,1756957838623,-500.71303867,0.00019973,2]
[383481514,1756957838632,-500.0,0.00019973,2]
[383481516,1756957838642,-500.0,0.00019973,2]
[383481518,1756957838651,-168.3498695,0.00019973,2]
[383481520,1756957838661,-501.26194324,0.00019973,2]
[383481522,1756957838671,-500.0,0.00019973,2]
[383481524,1756957838680,-500.0,0.00019973,2]
[383481526,1756957838689,-500.0,0.00019973,2]
[383481528,1756957838698,-503.0291965,0.00019973,2]
[383481530,1756957838708,-502.52701037,0.00019973,2]
[383481532,1756957838718,-500.0,0.00019973,2]
[383481534,1756957838728,-502.16412478,0.00019973,2]
[383481537,1756957838739,-501.90712756,0.00019973,2]
[383481538,1756957838748,-500.0,0.00019973,2]
[383481540,1756957838757,-367.34498687,0.00019973,2]
[383481542,1756957838766,-500.0,0.00019973,2]
[383481544,1756957838776,-502.77076362,0.00019973,2]
[383481546,1756957838786,-185.47598944,0.00019973,2]
[383481548,1756957838795,-500.0,0.00019973,2]
[383481550,1756957838804,-500.0,0.00019973,2]
[383481552,1756957838813,-171.04111995,0.00019973,2]
[383481554,1756957838822,-500.85468017,0.00019973,2]
[383481556,1756957838835,-500.0,0.00019973,2]
[383481558,1756957838844,-500.0,0.00019973,2]
[383481560,1756957838853,-500.0,0.00019973,2]
[383481562,1756957838862,-501.62191709,0.00019973,2]
[383481564,1756957838872,-500.0,0.00019973,2]
[383481566,1756957838881,-557.93192612,0.00019973,2]
[383481568,1756957838890,-151.85,0.0001999,2]
[383481570,1756957838899,-151.85,0.0001999,2]
[383481572,1756957838911,-151.85,0.0001999,2]
[383481574,1756957838921,-151.85,0.0001999,2]
[383481576,1756957838930,-151.85,0.0001999,2]
[383481578,1756957838939,-151.85,0.0001999,2]
[383481580,1756957838948,-151.85,0.0001999,2]
[383481582,1756957838958,-151.85,0.0001999,2]
[383481584,1756957838967,-457.70590453,0.0001999,2]
[383481586,1756957838976,-300.0,0.00019999,2]
[383481588,1756957838985,-300.0,0.00019999,2]
[383481591,1756957838995,-300.0,0.00019999,2]
[383481593,1756957839004,-666.0,0.00019999,2]
[383481594,1756957839013,-300.0,0.00019999,2]
[383481596,1756957839022,-300.0,0.00019999,2]
[383481598,1756957839032,-300.0,0.00019999,2]
[383481599,1756957839041,-666.0,0.00019999,2]
[383481600,1756957839050,-151.21101291,0.00019999,2]
[383481601,1756957839059,-150.0,0.00019999,2]
[383481602,1756957839068,-150.0,0.00019999,2]
[383481603,1756957839077,-169.2707534,0.0002,4]
[383481604,1756957839087,-4000.0,0.0002,4]
[383481605,1756957839096,-1515865.64115702,0.0002,2]
[383481606,1756957839105,-210127.47434548,0.0002,2]
[383481607,1756957839114,-142433.66406611,0.0002,2]
[383481608,1756957839123,-151.0,0.0002,2]
[383481609,1756957839132,-151.0,0.0002,2]
[383481610,1756957839142,-151.0,0.0002,2]
[383481611,1756957839151,-801.31,0.0002,2]
[383481613,1756957839161,-151.0,0.0002,2]
[383481615,1756957839170,-540.98,0.0002,2]
[383481617,1756957839180,-174.19,0.0002,2]
[383481618,1756957839189,-792.01,0.0002,2]
[383481620,1756957839199,-166.48,0.0002,2]
[383481622,1756957839208,-541.14,0.0002,2]
[383481624,1756957839217,-300.0,0.0002,2]
[383481626,1756957839226,-301.64,0.0002,2]
[383481628,1756957839237,-541.14,0.0002,2]
[383481630,1756957839246,-166.48,0.0002,2]
[383481632,1756957839255,-693.74,0.0002,2]
[383481634,1756957839265,-174.25,0.0002,2]
[383481636,1756957839275,-818.5,0.0002,2]
[383481638,1756957839284,-801.54,0.0002,2]
[383481640,1756957839293,-302.72,0.0002,2]
[383481642,1756957839303,-466.7,0.0002,2]
[383481644,1756957839312,-541.14,0.0002,2]
[383481646,1756957839321,-174.25,0.0002,2]
[383481648,1756957839330,-801.54,0.0002,2]
[383481650,1756957839340,-541.14,0.0002,2]
[383481652,1756957839349,-541.14,0.0002,2]
[383481654,1756957839358,-801.54,0.0002,2]
[383481656,1756957839368,-541.14,0.0002,2]
[383481658,1756957839377,-541.14,0.0002,2]
[383481660,1756957839386,-541.14,0.0002,2]
[383481662,1756957839396,-541.14,0.0002,2]
[383481664,1756957839407,-309.23,0.0002,2]
[383481666,1756957839417,-242.49,0.0002,2]
[383481668,1756957839427,-150.0,0.0002,2]
[383481670,1756957839437,-300.3,0.0002,2]
[383481672,1756957839446,-166.53,0.0002,2]
[383481674,1756957839455,-470.45,0.0002,2]
[383481676,1756957839464,-1204.75,0.0002,2]
[383481678,1756957839473,-345.1,0.0002,2]
[383481680,1756957839482,-150.0,0.0002,2]
[383481682,1756957839492,-151.806728,0.0002,2]
[383481684,1756957839501,-151.0,0.0002,2]
[383481686,1756957839511,-151.0,0.0002,2]
[383481688,1756957839520,-151.0,0.0002,2]
[383481690,1756957839529,-151.0,0.0002,2]
[383481692,1756957839538,-151.862832,0.0002,2]
[383481694,1756957839547,-151.0,0.0002,2]
[383481696,1756957839557,-151.0,0.0002,2]
[383481698,1756957839566,-151.0,0.0002,2]
[383481700,1756957839576,-151.0,0.0002,2]
[383481702,1756957839585,-290.778811,0.0002,2]
[383481704,1756957839595,-151.0,0.0002,2]
[383481706,1756957839605,-151.0,0.0002,2]
[383481708,1756957839615,-151.0,0.0002,2]
[383481710,1756957839624,-151.0,0.0002,2]
[383481712,1756957839634,-151.0,0.0002,2]
[383481714,1756957839643,-273.219348,0.0002,2]
[383481717,1756957839653,-160.486436,0.0002,2]
[383481718,1756957839663,-151.0,0.0002,2]
[383481720,1756957839672,-151.0,0.0002,2]
[383481722,1756957839681,-151.0,0.0002,2]
[383481724,1756957839690,-193.198658,0.0002,2]
[383481726,1756957839699,-151.0,0.0002,2]
[383481728,1756957839709,-151.0,0.0002,2]
[383481730,1756957839717,-160.0,0.0002,2]
[383481732,1756957839726,-160.0,0.0002,2]
[383481734,1756957839735,-160.0,0.0002,2]
[383481736,1756957839744,-160.0,0.0002,2]
[383481738,1756957839753,-151.0,0.0002,2]
[383481740,1756957839763,-160.0,0.0002,2]
[383481742,1756957839772,-156.256453,0.0002,2]
[383481744,1756957839782,-160.0,0.0002,2]
[383481746,1756957839791,-160.0,0.0002,2]
[383481748,1756957839800,-160.0,0.0002,2]
[383481750,1756957839811,-160.0,0.0002,2]
[383481752,1756957839820,-160.0,0.0002,2]
[383481754,1756957839833,-160.0,0.0002,2]
[383481756,1756957839842,-160.0,0.0002,2]
[383481758,1756957839851,-160.0,0.0002,2]
[383481760,1756957839861,-160.0,0.0002,2]
[383481762,1756957839871,-160.0,0.0002,2]
[383481764,1756957839880,-160.0,0.0002,2]
[383481766,1756957839891,-160.0,0.0002,2]
[383481768,1756957839900,-160.0,0.0002,2]
[383481770,1756957839910,-160.0,0.0002,2]
[383481772,1756957839920,-160.0,0.0002,2]
[383481774,1756957839930,-160.0,0.0002,2]
[383481776,1756957839939,-160.0,0.0002,2]
[383481778,1756957839948,-160.0,0.0002,2]
[383481780,1756957839958,-160.0,0.0002,2]
[383481782,1756957839968,-160.0,0.0002,2]
[383481784,1756957839978,-160.0,0.0002,2]
[383481786,1756957839987,-160.0,0.0002,2]
[383481788,1756957839997,-160.0,0.0002,2]
[383481790,1756957840007,-160.0,0.0002,2]
[383481792,1756957840017,-160.0,0.0002,2]
[383481794,1756957840026,-160.0,0.0002,2]
[383481796,1756957840035,-160.0,0.0002,2]
[383481798,1756957840045,-160.0,0.0002,2]
[383481800,1756957840055,-160.0,0.0002,2]
[383481802,1756957840064,-160.0,0.0002,2]
[383481804,1756957840073,-160.0,0.0002,2]
[383481806,1756957840083,-160.0,0.0002,2]
[383481808,1756957840093,-1000.0,0.0002,2]
[383481810,1756957840102,-160.0,0.0002,2]
[383481812,1756957840112,-160.0,0.0002,2]
[383481814,1756957840123,-160.0,0.0002,2]
[383481818,1756957840133,-307.24556732,0.0002,2]
[383481819,1756957840143,-160.0,0.0002,2]
[383481821,1756957840152,-160.0,0.0002,2]
[383481824,1756957840163,-160.0,0.0002,2]
[383481826,1756957840173,-160.0,0.0002,2]
[383481828,1756957840182,-160.0,0.0002,2]
[383481830,1756957840191,-160.0,0.0002,2]
[383481833,1756957840200,-160.0,0.0002,2]
[383481835,1756957840209,-160.0,0.0002,2]
[383481837,1756957840219,-160.0,0.0002,2]
[383481839,1756957840228,-160.0,0.0002,2]
[383481841,1756957840237,-466.882661,0.0002,2]
[383481843,1756957840246,-466.882661,0.0002,2]
[383481845,1756957840256,-466.882661,0.0002,2]
[383481847,1756957840265,-466.882661,0.0002,2]
[383481849,1756957840274,-466.882661,0.0002,2]
[383481851,1756957840284,-466.882661,0.0002,2]
[383481853,1756957840293,-955.16464,0.0002,2]
[383481855,1756957840302,-466.882661,0.0002,2]
[383481857,1756957840312,-466.882661,0.0002,2]
[383481859,1756957840320,-466.882661,0.0002,2]
[383481860,1756957840331,-466.882661,0.0002,2]
[383481863,1756957840342,-466.882661,0.0002,2]
[383481864,1756957840352,-466.882661,0.0002,2]
[383481866,1756957840361,-329.456458,0.0002,2]
[383481868,1756957840371,-329.456458,0.0002,2]
[383481870,1756957840380,-329.456458,0.0002,2]
[383481872,1756957840390,-151.0,0.0002,2]
[383481874,1756957840399,-329.456458,0.0002,2]
[383481876,1756957840410,-151.0,0.0002,2]
[383481878,1756957840420,-329.456458,0.0002,2]
[383481880,1756957840430,-151.0,0.0002,2]
[383481882,1756957840440,-329.456458,0.0002,2]
[383481884,1756957840449,-151.0,0.0002,2]
[383481886,1756957840458,-329.456458,0.0002,2]
[383481888,1756957840468,-151.0,0.0002,2]
[383481890,1756957840477,-329.456458,0.0002,2]
[383481892,1756957840488,-206.742319,0.0002,2]
[383481894,1756957840498,-329.456458,0.0002,2]
[383481896,1756957840509,-329.456458,0.0002,2]
[383481898,1756957840519,-329.456458,0.0002,2]
[383481900,1756957840528,-329.456458,0.0002,2]
[383481902,1756957840537,-3642.490076,0.0002,2]
[383481904,1756957840547,-3642.490076,0.0002,2]
[383481906,1756957840556,-3642.490076,0.0002,2]
[383481908,1756957840565,-3642.490076,0.0002,2]
[383481910,1756957840574,-3642.490076,0.0002,2]
[383481912,1756957840583,-3642.490076,0.0002,2]
[383481914,1756957840593,-3642.490076,0.0002,2]
[383481916,1756957840602,-3642.490076,0.0002,2]
[383481918,1756957840612,-3642.490076,0.0002,2]
[383481920,1756957840621,-3642.490076,0.0002,2]